[Event "*** Titled Tuesday Blitz"]
[Site "Chess.com"]
[Date "2020.10.20"]
[Round "4"]
[White "Guenplen"]
[Black "LawrenceTrent"]
[Result "1-0"]
[WhiteElo "2844"]
[BlackElo "2524"]
[TimeControl "180+1"]
[EndTime "10:36:49 PDT"]
[Termination "Guenplen won by resignation"]

1. Nf3 {[%clk 0:03:00.9]} 1... Nc6 {[%clk 0:02:59.7]} 2. d4 {[%clk 0:02:59.7]}
2... d5 {[%clk 0:02:59.4]} 3. Bf4 {[%clk 0:02:59.5]} 3... Bf5 {[%clk 0:02:58.7]}
4. e3 {[%clk 0:02:59.2]} 4... e6 {[%clk 0:02:59]} 5. Bd3 {[%clk 0:02:54.5]} 5...
Bxd3 {[%clk 0:02:59]} 6. Qxd3 {[%clk 0:02:55.2]} 6... Bd6 {[%clk 0:02:59.5]} 7.
Bg3 {[%clk 0:02:55.4]} 7... f5 {[%clk 0:02:59.4]} 8. c4 {[%clk 0:02:47.9]} 8...
Bb4+ {[%clk 0:02:51.9]} 9. Nc3 {[%clk 0:02:47.1]} 9... Nf6 {[%clk 0:02:52.4]}
10. O-O {[%clk 0:02:46.8]} 10... Bxc3 {[%clk 0:02:48]} 11. bxc3 {[%clk
0:02:43.1]} 11... O-O {[%clk 0:02:47.5]} 12. cxd5 {[%clk 0:02:41.8]} 12... Nxd5
{[%clk 0:02:40.4]} 13. c4 {[%clk 0:02:41]} 13... Nf6 {[%clk 0:02:40.2]} 14. Qb3
{[%clk 0:02:35.7]} 14... b6 {[%clk 0:02:38.8]} 15. Rfd1 {[%clk 0:02:25.8]} 15...
Na5 {[%clk 0:02:33.7]} 16. Qa4 {[%clk 0:02:23.9]} 16... Qd7 {[%clk 0:02:32]} 17.
Qxd7 {[%clk 0:02:21.8]} 17... Nxd7 {[%clk 0:02:30.9]} 18. Rac1 {[%clk
0:02:22.7]} 18... h6 {[%clk 0:02:24.5]} 19. d5 {[%clk 0:02:17.1]} 19... exd5
{[%clk 0:02:23.3]} 20. cxd5 {[%clk 0:02:13.4]} 20... Nc5 {[%clk 0:02:23.5]} 21.
Bxc7 {[%clk 0:02:13]} 21... Rf7 {[%clk 0:02:14.7]} 22. Rxc5 {[%clk 0:02:09.8]}
22... bxc5 {[%clk 0:02:13.3]} 23. Bxa5 {[%clk 0:02:09.5]} 1-0

[Event "*** Titled Tuesday Blitz"]
[Site "Chess.com"]
[Date "2020.10.20"]
[Round "4"]
[White "TheCastleHunter"]
[Black "Swarnapuri"]
[Result "0-1"]
[WhiteElo "2359"]
[BlackElo "2618"]
[TimeControl "180+1"]
[EndTime "10:36:53 PDT"]
[Termination "Swarnapuri won by resignation"]

1. e4 {[%clk 0:03:00.9]} 1... Nc6 {[%clk 0:03:00.9]} 2. d4 {[%clk 0:03:00.4]}
2... e5 {[%clk 0:03:00.9]} 3. d5 {[%clk 0:03:00.1]} 3... Nce7 {[%clk 0:03:01.3]}
4. f4 {[%clk 0:02:59.8]} 4... Ng6 {[%clk 0:03:01.6]} 5. fxe5 {[%clk 0:02:59.2]}
5... Qh4+ {[%clk 0:03:01.6]} 6. Kd2 {[%clk 0:02:44.5]} 6... Qxe4 {[%clk
0:03:00.8]} 7. Nc3 {[%clk 0:02:42]} 7... Bb4 {[%clk 0:02:58.8]} 8. Qf3 {[%clk
0:02:35.3]} 8... Qxe5 {[%clk 0:02:40.5]} 9. Qe3 {[%clk 0:02:34.7]} 9... Nf6
{[%clk 0:02:30]} 10. Bc4 {[%clk 0:02:24.9]} 10... Ne4+ {[%clk 0:02:18.4]} 11.
Kd1 {[%clk 0:02:13.1]} 11... Nxc3+ {[%clk 0:01:50.9]} 12. bxc3 {[%clk
0:02:04.2]} 12... Bxc3 {[%clk 0:01:51.5]} 13. Qxe5+ {[%clk 0:02:03.1]} 13...
Nxe5 {[%clk 0:01:52.1]} 14. Rb1 {[%clk 0:02:03.4]} 14... Nxc4 {[%clk 0:01:52.1]}
0-1

[Event "*** Titled Tuesday Blitz"]
[Site "Chess.com"]
[Date "2020.10.20"]
[Round "4"]
[White "chito89"]
[Black "doons21"]
[Result "1-0"]
[WhiteElo "2815"]
[BlackElo "2560"]
[TimeControl "180+1"]
[EndTime "10:37:04 PDT"]
[Termination "chito89 won by resignation"]

1. c4 {[%clk 0:02:58.3]} 1... Nf6 {[%clk 0:02:59.6]} 2. Nc3 {[%clk 0:02:58.2]}
2... g6 {[%clk 0:02:58.8]} 3. g3 {[%clk 0:02:57.3]} 3... Bg7 {[%clk 0:02:58.5]}
4. Bg2 {[%clk 0:02:57.9]} 4... O-O {[%clk 0:02:58.6]} 5. Nf3 {[%clk 0:02:57.7]}
5... d6 {[%clk 0:02:51.6]} 6. O-O {[%clk 0:02:56.6]} 6... c6 {[%clk 0:02:51.6]}
7. d3 {[%clk 0:02:55.4]} 7... a5 {[%clk 0:02:48.5]} 8. Rb1 {[%clk 0:02:55.1]}
8... e5 {[%clk 0:02:48.4]} 9. a3 {[%clk 0:02:54.8]} 9... Re8 {[%clk 0:02:30.6]}
10. Bg5 {[%clk 0:02:45.4]} 10... Be6 {[%clk 0:02:12]} 11. b4 {[%clk 0:02:38.1]}
11... axb4 {[%clk 0:02:11.5]} 12. axb4 {[%clk 0:02:39]} 12... Qd7 {[%clk
0:02:06.6]} 13. c5 {[%clk 0:02:24.2]} 13... h6 {[%clk 0:01:28.9]} 14. Bxf6
{[%clk 0:02:19.9]} 14... Bxf6 {[%clk 0:01:29.8]} 15. Ne4 {[%clk 0:02:20.4]}
15... Be7 {[%clk 0:01:30.4]} 16. cxd6 {[%clk 0:02:18.4]} 16... Bxd6 {[%clk
0:01:30.5]} 17. Nf6+ {[%clk 0:02:17.9]} 1-0

[Event "*** Titled Tuesday Blitz"]
[Site "Chess.com"]
[Date "2020.10.20"]
[Round "4"]
[White "Zhigalko_Sergei"]
[Black "PhileKhoob"]
[Result "1-0"]
[WhiteElo "2932"]
[BlackElo "2542"]
[TimeControl "180+1"]
[EndTime "10:37:04 PDT"]
[Termination "Zhigalko_Sergei won by resignation"]

1. e4 {[%clk 0:03:00.9]} 1... c5 {[%clk 0:02:59.8]} 2. Nf3 {[%clk 0:03:01.1]}
2... d6 {[%clk 0:02:59.3]} 3. d4 {[%clk 0:03:01.5]} 3... cxd4 {[%clk 0:03:00.2]}
4. Qxd4 {[%clk 0:03:02.4]} 4... Nc6 {[%clk 0:02:59.3]} 5. Bb5 {[%clk 0:03:02.3]}
5... Bd7 {[%clk 0:02:59.9]} 6. Bxc6 {[%clk 0:03:02.5]} 6... Bxc6 {[%clk
0:03:00.8]} 7. Nc3 {[%clk 0:03:03]} 7... Nf6 {[%clk 0:03:00.7]} 8. Bg5 {[%clk
0:03:03.2]} 8... e6 {[%clk 0:03:00.8]} 9. O-O-O {[%clk 0:03:03]} 9... Be7 {[%clk
0:03:00.7]} 10. Rhe1 {[%clk 0:03:03.1]} 10... O-O {[%clk 0:03:00.1]} 11. Kb1
{[%clk 0:03:03.5]} 11... a6 {[%clk 0:02:58.9]} 12. Qd2 {[%clk 0:02:58.5]} 12...
Qc7 {[%clk 0:02:57.3]} 13. Nd4 {[%clk 0:02:58.2]} 13... Rac8 {[%clk 0:02:52]}
14. f3 {[%clk 0:02:57.8]} 14... b5 {[%clk 0:02:48.3]} 15. g4 {[%clk 0:02:56.2]}
15... b4 {[%clk 0:02:31.1]} 16. Nce2 {[%clk 0:02:56.2]} 16... a5 {[%clk
0:02:20.8]} 17. Ng3 {[%clk 0:02:56.3]} 17... Rb8 {[%clk 0:01:57]} 18. Nh5 {[%clk
0:02:49.3]} 18... Nxh5 {[%clk 0:01:37.5]} 19. Bxe7 {[%clk 0:02:42.2]} 19... Rfc8
{[%clk 0:01:20.8]} 20. Nxc6 {[%clk 0:02:39.8]} 20... Qxc6 {[%clk 0:01:20.4]} 21.
gxh5 {[%clk 0:02:40.2]} 1-0

[Event "*** Titled Tuesday Blitz"]
[Site "Chess.com"]
[Date "2020.10.20"]
[Round "4"]
[White "Omk124"]
[Black "bascheyaro"]
[Result "0-1"]
[WhiteElo "2488"]
[BlackElo "2727"]
[TimeControl "180+1"]
[EndTime "10:37:08 PDT"]
[Termination "bascheyaro won by resignation"]

1. e4 {[%clk 0:03:00.9]} 1... e6 {[%clk 0:03:00.1]} 2. d4 {[%clk 0:03:00.9]}
2... d5 {[%clk 0:03:01]} 3. Nd2 {[%clk 0:03:01]} 3... c5 {[%clk 0:03:00.8]} 4.
exd5 {[%clk 0:03:01]} 4... exd5 {[%clk 0:03:01.7]} 5. Ngf3 {[%clk 0:03:01.2]}
5... Nc6 {[%clk 0:03:02.6]} 6. Bb5 {[%clk 0:03:00.7]} 6... c4 {[%clk 0:03:03.2]}
7. O-O {[%clk 0:03:00.7]} 7... Bd6 {[%clk 0:03:03.9]} 8. b3 {[%clk 0:03:00.1]}
8... cxb3 {[%clk 0:03:04.8]} 9. axb3 {[%clk 0:02:59.4]} 9... Ne7 {[%clk
0:03:05.7]} 10. c4 {[%clk 0:02:59.7]} 10... O-O {[%clk 0:03:06.6]} 11. Bb2
{[%clk 0:02:58]} 11... a6 {[%clk 0:03:05.5]} 12. Ba4 {[%clk 0:02:55.3]} 12...
Bf5 {[%clk 0:03:05.4]} 13. Re1 {[%clk 0:02:54.5]} 13... Nb4 {[%clk 0:03:04.1]}
14. Nh4 {[%clk 0:02:38.4]} 14... Bc2 {[%clk 0:02:32.2]} 15. Qc1 {[%clk
0:02:30.1]} 15... Ng6 {[%clk 0:02:25.4]} 16. Nxg6 {[%clk 0:02:29.6]} 16... Bxg6
{[%clk 0:02:26]} 17. Re3 {[%clk 0:01:50.8]} 17... Nc2 {[%clk 0:02:20.2]} 18. Nf3
{[%clk 0:01:39.9]} 18... Nxa1 {[%clk 0:02:17.1]} 19. Qxa1 {[%clk 0:01:38.7]}
19... b5 {[%clk 0:02:17.3]} 0-1

[Event "*** Titled Tuesday Blitz"]
[Site "Chess.com"]
[Date "2020.10.20"]
[Round "4"]
[White "pedro_nascimento85"]
[Black "jlmanzanares"]
[Result "0-1"]
[WhiteElo "2001"]
[BlackElo "2251"]
[TimeControl "180+1"]
[EndTime "10:37:30 PDT"]
[Termination "jlmanzanares won by checkmate"]

1. d4 {[%clk 0:03:00.9]} 1... Nf6 {[%clk 0:02:59]} 2. c4 {[%clk 0:03:00.4]} 2...
g6 {[%clk 0:02:58.3]} 3. Nc3 {[%clk 0:03:00]} 3... Bg7 {[%clk 0:02:58.6]} 4. e4
{[%clk 0:02:59.4]} 4... d6 {[%clk 0:02:59]} 5. Be2 {[%clk 0:02:58.7]} 5... O-O
{[%clk 0:02:59.3]} 6. Nf3 {[%clk 0:02:58.7]} 6... e5 {[%clk 0:02:57.6]} 7. d5
{[%clk 0:02:58.2]} 7... a5 {[%clk 0:02:54.9]} 8. Bg5 {[%clk 0:02:57.4]} 8... Na6
{[%clk 0:02:52.5]} 9. Nd2 {[%clk 0:02:55.8]} 9... h6 {[%clk 0:02:51.8]} 10. Be3
{[%clk 0:02:54.4]} 10... Nh7 {[%clk 0:02:50.5]} 11. O-O {[%clk 0:02:52.9]} 11...
f5 {[%clk 0:02:50]} 12. f3 {[%clk 0:02:41.1]} 12... h5 {[%clk 0:02:38.3]} 13. a3
{[%clk 0:02:37.3]} 13... Bd7 {[%clk 0:02:35.6]} 14. b3 {[%clk 0:02:35.7]} 14...
f4 {[%clk 0:02:30.3]} 15. Bf2 {[%clk 0:02:34.7]} 15... Bf6 {[%clk 0:02:26]} 16.
Rb1 {[%clk 0:02:31.7]} 16... Bh4 {[%clk 0:02:25.1]} 17. b4 {[%clk 0:02:28.2]}
17... Bxf2+ {[%clk 0:02:24.1]} 18. Rxf2 {[%clk 0:02:27.1]} 18... axb4 {[%clk
0:02:23.5]} 19. axb4 {[%clk 0:02:26.4]} 19... Qh4 {[%clk 0:02:20.7]} 20. c5
{[%clk 0:02:12.8]} 20... g5 {[%clk 0:02:08.8]} 21. Kh1 {[%clk 0:01:59.7]} 21...
Kh8 {[%clk 0:02:08]} 22. Rf1 {[%clk 0:01:56.6]} 22... g4 {[%clk 0:02:07.2]} 23.
Qe1 {[%clk 0:01:43.5]} 23... g3 {[%clk 0:02:05.2]} 24. h3 {[%clk 0:01:41.5]}
24... Bxh3 {[%clk 0:02:04.4]} 25. gxh3 {[%clk 0:01:36.8]} 25... Qxh3+ {[%clk
0:02:04]} 26. Kg1 {[%clk 0:01:37.2]} 26... Qh2# {[%clk 0:02:04.9]} 0-1

[Event "*** Titled Tuesday Blitz"]
[Site "Chess.com"]
[Date "2020.10.20"]
[Round "4"]
[White "bait_or_mate"]
[Black "YIYUKI"]
[Result "0-1"]
[WhiteElo "2591"]
[BlackElo "2339"]
[TimeControl "180+1"]
[EndTime "10:37:47 PDT"]
[Termination "YIYUKI won by resignation"]

1. d4 {[%clk 0:03:00.9]} 1... Nf6 {[%clk 0:02:58.9]} 2. c4 {[%clk 0:03:00.8]}
2... g6 {[%clk 0:02:58.8]} 3. Nc3 {[%clk 0:03:00.7]} 3... Bg7 {[%clk 0:02:59.2]}
4. e4 {[%clk 0:03:01]} 4... d6 {[%clk 0:02:59.2]} 5. Nf3 {[%clk 0:03:01.2]} 5...
O-O {[%clk 0:02:58.8]} 6. Be2 {[%clk 0:03:00.5]} 6... e5 {[%clk 0:02:53.3]} 7.
O-O {[%clk 0:02:59.3]} 7... exd4 {[%clk 0:02:53]} 8. Nxd4 {[%clk 0:02:58.3]}
8... Re8 {[%clk 0:02:53.3]} 9. f3 {[%clk 0:02:55.6]} 9... Nc6 {[%clk 0:02:53.7]}
10. Be3 {[%clk 0:02:54.6]} 10... Nh5 {[%clk 0:02:53]} 11. Nxc6 {[%clk
0:02:50.3]} 11... bxc6 {[%clk 0:02:51.8]} 12. Qd2 {[%clk 0:02:50.1]} 12... f5
{[%clk 0:02:48.1]} 13. exf5 {[%clk 0:02:47.6]} 13... Bxf5 {[%clk 0:02:30.2]} 14.
g4 {[%clk 0:02:37.2]} 14... Qh4 {[%clk 0:02:25.7]} 15. gxf5 {[%clk 0:02:35.8]}
15... Rxe3 {[%clk 0:02:23.8]} 16. Ne4 {[%clk 0:02:13.2]} 16... Nf4 {[%clk
0:02:08.2]} 17. Rae1 {[%clk 0:01:54.2]} 17... Rxe4 {[%clk 0:01:35.5]} 18. fxe4
{[%clk 0:01:47.1]} 18... Qg5+ {[%clk 0:01:35.2]} 19. Kf2 {[%clk 0:01:47.4]}
19... Nh3+ {[%clk 0:01:32]} 20. Kf3 {[%clk 0:01:46.3]} 20... Qxd2 {[%clk
0:01:30.6]} 0-1

[Event "*** Titled Tuesday Blitz"]
[Site "Chess.com"]
[Date "2020.10.20"]
[Round "4"]
[White "Nastya_Rakhmangulova"]
[Black "Bwert2602"]
[Result "1/2-1/2"]
[WhiteElo "2438"]
[BlackElo "2348"]
[TimeControl "180+1"]
[EndTime "10:37:51 PDT"]
[Termination "Game drawn by agreement"]

1. e4 {[%clk 0:03:00.9]} 1... c5 {[%clk 0:02:58.9]} 2. Nf3 {[%clk 0:03:00.6]}
2... Nc6 {[%clk 0:02:58.8]} 3. d4 {[%clk 0:02:59.2]} 3... cxd4 {[%clk
0:02:59.7]} 4. Nxd4 {[%clk 0:03:00.1]} 4... e5 {[%clk 0:02:59.6]} 5. Nb5 {[%clk
0:02:59.2]} 5... a6 {[%clk 0:02:58.8]} 6. Nd6+ {[%clk 0:02:59.3]} 6... Bxd6
{[%clk 0:02:58.7]} 7. Qxd6 {[%clk 0:03:00.2]} 7... Qf6 {[%clk 0:02:58.7]} 8. Qd1
{[%clk 0:03:00]} 8... Qg6 {[%clk 0:02:58.5]} 9. Nc3 {[%clk 0:02:56.8]} 9... Nf6
{[%clk 0:02:50.8]} 10. Qd6 {[%clk 0:02:56.4]} 10... Ng4 {[%clk 0:02:49.7]} 11.
Qxg6 {[%clk 0:02:47.8]} 11... hxg6 {[%clk 0:02:49.5]} 12. Nd5 {[%clk 0:02:48.7]}
12... Rb8 {[%clk 0:02:39.4]} 13. f3 {[%clk 0:02:11.7]} 13... Nxh2 {[%clk
0:02:31.9]} 14. Ke2 {[%clk 0:01:54.9]} 14... Nd4+ {[%clk 0:02:29.5]} 15. Kd3
{[%clk 0:01:49.6]} 15... Rh5 {[%clk 0:02:16.3]} 16. Be2 {[%clk 0:01:30.3]} 16...
Nxe2 {[%clk 0:01:47.6]} 17. Kxe2 {[%clk 0:01:31.2]} 17... Nxf3 {[%clk
0:01:47.2]} 1/2-1/2

[Event "*** Titled Tuesday Blitz"]
[Site "Chess.com"]
[Date "2020.10.20"]
[Round "4"]
[White "Zmeeed63"]
[Black "Legendinunknown"]
[Result "0-1"]
[WhiteElo "2351"]
[BlackElo "2600"]
[TimeControl "180+1"]
[EndTime "10:37:52 PDT"]
[Termination "Legendinunknown won by resignation"]

1. d4 {[%clk 0:03:00.9]} 1... Nf6 {[%clk 0:02:58.4]} 2. c4 {[%clk 0:03:01]} 2...
g6 {[%clk 0:02:58.1]} 3. Nc3 {[%clk 0:03:01.4]} 3... Bg7 {[%clk 0:02:58.1]} 4.
Nf3 {[%clk 0:03:01.8]} 4... O-O {[%clk 0:02:57.8]} 5. Bg5 {[%clk 0:03:02.2]}
5... d6 {[%clk 0:02:57.4]} 6. e3 {[%clk 0:03:00.9]} 6... c5 {[%clk 0:02:57]} 7.
Be2 {[%clk 0:03:00]} 7... Nc6 {[%clk 0:02:56]} 8. O-O {[%clk 0:02:59.5]} 8...
cxd4 {[%clk 0:02:53.9]} 9. exd4 {[%clk 0:03:00.4]} 9... d5 {[%clk 0:02:54.1]}
10. Bxf6 {[%clk 0:02:57.3]} 10... exf6 {[%clk 0:02:42.8]} 11. Nxd5 {[%clk
0:02:51.6]} 11... f5 {[%clk 0:02:39.9]} 12. Qb3 {[%clk 0:02:25.6]} 12... Nxd4
{[%clk 0:02:23.9]} 13. Nxd4 {[%clk 0:02:24.5]} 13... Bxd4 {[%clk 0:02:24.8]} 14.
Rad1 {[%clk 0:02:23.5]} 14... Bg7 {[%clk 0:02:24.2]} 15. Bf3 {[%clk 0:02:21.6]}
15... Qg5 {[%clk 0:02:20.1]} 16. Nc7 {[%clk 0:02:10.8]} 16... Rb8 {[%clk
0:02:17]} 17. Na6 {[%clk 0:02:09.2]} 17... Ra8 {[%clk 0:02:08.4]} 18. Bxb7
{[%clk 0:02:08.8]} 18... Bxb7 {[%clk 0:02:08.9]} 19. Qxb7 {[%clk 0:02:09.2]}
19... f4 {[%clk 0:02:07.7]} 20. Rd3 {[%clk 0:01:58.6]} 20... Rae8 {[%clk
0:01:58.3]} 21. c5 {[%clk 0:01:56.5]} 21... Re2 {[%clk 0:01:56.3]} 22. b4 {[%clk
0:01:53.2]} 22... Rxa2 {[%clk 0:01:53.2]} 23. c6 {[%clk 0:01:51.8]} 23... Qf5
{[%clk 0:01:42.3]} 24. Rfd1 {[%clk 0:01:48.6]} 24... Qxd3 {[%clk 0:01:40.7]} 0-1

[Event "*** Titled Tuesday Blitz"]
[Site "Chess.com"]
[Date "2020.10.20"]
[Round "4"]
[White "ChessWarrior7197"]
[Black "kuban1991"]
[Result "1/2-1/2"]
[WhiteElo "3011"]
[BlackElo "2816"]
[TimeControl "180+1"]
[EndTime "10:37:54 PDT"]
[Termination "Game drawn by agreement"]

1. d4 {[%clk 0:03:00.9]} 1... g6 {[%clk 0:02:53.6]} 2. e4 {[%clk 0:02:59.5]}
2... Bg7 {[%clk 0:02:53.8]} 3. Nc3 {[%clk 0:02:59.4]} 3... c6 {[%clk 0:02:54.2]}
4. f4 {[%clk 0:02:59.3]} 4... d5 {[%clk 0:02:54.8]} 5. e5 {[%clk 0:02:59.9]}
5... Nh6 {[%clk 0:02:55.2]} 6. Nf3 {[%clk 0:02:58.8]} 6... O-O {[%clk
0:02:54.6]} 7. Bd3 {[%clk 0:02:52.7]} 7... Bg4 {[%clk 0:02:54.3]} 8. O-O {[%clk
0:02:52.4]} 8... f6 {[%clk 0:02:53.8]} 9. Be3 {[%clk 0:02:49.6]} 9... Nf5 {[%clk
0:02:50.2]} 10. Qd2 {[%clk 0:02:46]} 10... Bxf3 {[%clk 0:02:42.9]} 11. Rxf3
{[%clk 0:02:45.6]} 11... Nxe3 {[%clk 0:02:42.6]} 12. Qxe3 {[%clk 0:02:45.1]}
12... e6 {[%clk 0:02:39.5]} 13. Re1 {[%clk 0:02:31.5]} 13... Nd7 {[%clk
0:02:38.4]} 14. Ne2 {[%clk 0:02:29]} 14... fxe5 {[%clk 0:02:33.6]} 15. fxe5
{[%clk 0:02:27]} 15... Rxf3 {[%clk 0:02:32.6]} 16. Qxf3 {[%clk 0:02:27.9]} 16...
Qe7 {[%clk 0:02:30.7]} 17. c3 {[%clk 0:02:22]} 17... Rf8 {[%clk 0:02:30.8]} 18.
Qe3 {[%clk 0:02:17.3]} 18... Qh4 {[%clk 0:02:19.2]} 19. g3 {[%clk 0:02:14.6]}
19... Bh6 {[%clk 0:02:18.5]} 20. gxh4 {[%clk 0:01:54.1]} 20... Bxe3+ {[%clk
0:02:18]} 21. Kg2 {[%clk 0:01:55]} 21... c5 {[%clk 0:02:03.9]} 22. Rf1 {[%clk
0:01:17.1]} 1/2-1/2

[Event "*** Titled Tuesday Blitz"]
[Site "Chess.com"]
[Date "2020.10.20"]
[Round "4"]
[White "jlucasvf"]
[Black "mishanick"]
[Result "0-1"]
[WhiteElo "2789"]
[BlackElo "2995"]
[TimeControl "180+1"]
[EndTime "10:38:02 PDT"]
[Termination "mishanick won by resignation"]

1. g4 {[%clk 0:03:00.9]} 1... d5 {[%clk 0:02:59]} 2. Bg2 {[%clk 0:03:01.8]} 2...
c6 {[%clk 0:02:59.7]} 3. h3 {[%clk 0:03:01.8]} 3... e5 {[%clk 0:02:59.7]} 4. d4
{[%clk 0:03:02.3]} 4... e4 {[%clk 0:02:59.6]} 5. c4 {[%clk 0:03:02.6]} 5... h5
{[%clk 0:02:58.6]} 6. g5 {[%clk 0:03:02.5]} 6... Bd6 {[%clk 0:02:57.8]} 7. Nc3
{[%clk 0:03:02.3]} 7... Ne7 {[%clk 0:02:57.7]} 8. f3 {[%clk 0:03:01.4]} 8...
Bg3+ {[%clk 0:02:54.8]} 9. Kf1 {[%clk 0:03:01.8]} 9... exf3 {[%clk 0:02:53.1]}
10. Nxf3 {[%clk 0:03:02]} 10... Bf5 {[%clk 0:02:53.2]} 11. Be3 {[%clk
0:02:50.7]} 11... Nd7 {[%clk 0:02:52.4]} 12. Bf2 {[%clk 0:02:51]} 12... Bd6
{[%clk 0:02:50.4]} 13. e4 {[%clk 0:02:45.2]} 13... dxe4 {[%clk 0:02:46.5]} 14.
Nd2 {[%clk 0:02:45.2]} 14... Qc7 {[%clk 0:02:13.5]} 15. Bxe4 {[%clk 0:02:43.1]}
15... O-O-O {[%clk 0:02:07.5]} 16. Kg2 {[%clk 0:02:42.1]} 16... Bf4 {[%clk
0:02:04.4]} 17. Bxf5 {[%clk 0:02:39]} 17... Nxf5 {[%clk 0:02:04.2]} 18. Nde4
{[%clk 0:02:39.9]} 18... Ne5 {[%clk 0:01:57.5]} 19. b3 {[%clk 0:02:23.3]} 19...
Ng6 {[%clk 0:01:53.7]} 20. d5 {[%clk 0:02:15.8]} 20... Ngh4+ {[%clk 0:01:46.7]}
21. Kf1 {[%clk 0:02:15.8]} 21... Ne3+ {[%clk 0:01:42.4]} 22. Bxe3 {[%clk
0:02:15.3]} 22... Bxe3 {[%clk 0:01:43.3]} 23. d6 {[%clk 0:02:11.4]} 23... Qd7
{[%clk 0:01:43.2]} 24. Qd3 {[%clk 0:01:47.9]} 24... Qf5+ {[%clk 0:01:41.6]} 25.
Ke1 {[%clk 0:01:42.9]} 25... Qf3 {[%clk 0:01:40.7]} 26. Ne2 {[%clk 0:01:31.8]}
26... Qxh1+ {[%clk 0:01:39.3]} 0-1

[Event "*** Titled Tuesday Blitz"]
[Site "Chess.com"]
[Date "2020.10.20"]
[Round "4"]
[White "UmbertoConcelli"]
[Black "TheCavemanChesss"]
[Result "1-0"]
[WhiteElo "2710"]
[BlackElo "2476"]
[TimeControl "180+1"]
[EndTime "10:38:14 PDT"]
[Termination "UmbertoConcelli won by resignation"]

1. d4 {[%clk 0:03:00.9]} 1... Nf6 {[%clk 0:02:59.8]} 2. c4 {[%clk 0:03:00.4]}
2... e6 {[%clk 0:02:59.6]} 3. Nf3 {[%clk 0:02:59.9]} 3... d5 {[%clk 0:02:59.5]}
4. Nc3 {[%clk 0:02:59.4]} 4... Bb4 {[%clk 0:02:59.7]} 5. e3 {[%clk 0:02:58.6]}
5... O-O {[%clk 0:02:57.6]} 6. Bd2 {[%clk 0:02:57.2]} 6... c5 {[%clk 0:02:52.2]}
7. dxc5 {[%clk 0:02:55.9]} 7... Nbd7 {[%clk 0:02:29.6]} 8. cxd5 {[%clk
0:02:53.2]} 8... exd5 {[%clk 0:02:08.5]} 9. Be2 {[%clk 0:02:51.3]} 9... Re8
{[%clk 0:01:52.3]} 10. O-O {[%clk 0:02:50.5]} 10... Bxc5 {[%clk 0:01:36.3]} 11.
Rc1 {[%clk 0:02:49.3]} 11... Bd6 {[%clk 0:01:27.8]} 12. Nb5 {[%clk 0:02:47.6]}
12... Bb8 {[%clk 0:01:22]} 13. Qc2 {[%clk 0:02:46.4]} 13... Ne4 {[%clk
0:01:19.7]} 14. Nc7 {[%clk 0:02:45.4]} 14... Bxc7 {[%clk 0:00:36.3]} 15. Qxc7
{[%clk 0:02:46.3]} 15... Nxd2 {[%clk 0:00:30.9]} 16. Nxd2 {[%clk 0:02:44.6]}
16... Qf6 {[%clk 0:00:30.9]} 17. Bb5 {[%clk 0:02:39.1]} 17... Rd8 {[%clk
0:00:20.4]} 18. Nf3 {[%clk 0:02:34.4]} 18... a6 {[%clk 0:00:20.6]} 19. Ba4
{[%clk 0:02:32.9]} 19... b5 {[%clk 0:00:20.8]} 20. Bb3 {[%clk 0:02:33]} 20...
Rb8 {[%clk 0:00:20]} 21. Bxd5 {[%clk 0:02:31.6]} 21... Nb6 {[%clk 0:00:19.6]}
22. Bxf7+ {[%clk 0:02:30.8]} 22... Qxf7 {[%clk 0:00:18.8]} 23. Qxd8+ {[%clk
0:02:29.6]} 1-0

[Event "*** Titled Tuesday Blitz"]
[Site "Chess.com"]
[Date "2020.10.20"]
[Round "4"]
[White "killer311"]
[Black "annamaja"]
[Result "0-1"]
[WhiteElo "2411"]
[BlackElo "2292"]
[TimeControl "180+1"]
[EndTime "10:38:14 PDT"]
[Termination "annamaja won by resignation"]

1. d4 {[%clk 0:03:00.9]} 1... d5 {[%clk 0:03:00.3]} 2. c4 {[%clk 0:03:01.2]}
2... c6 {[%clk 0:03:00.5]} 3. e3 {[%clk 0:03:00.3]} 3... Nf6 {[%clk 0:03:00.2]}
4. Nf3 {[%clk 0:03:00.8]} 4... e6 {[%clk 0:03:00.5]} 5. b3 {[%clk 0:02:59.7]}
5... Bd6 {[%clk 0:03:00.3]} 6. Nbd2 {[%clk 0:02:59.4]} 6... O-O {[%clk
0:03:00.4]} 7. Bb2 {[%clk 0:02:59.9]} 7... Nbd7 {[%clk 0:02:59.5]} 8. Bd3 {[%clk
0:03:00.1]} 8... b6 {[%clk 0:02:58.8]} 9. O-O {[%clk 0:02:59.2]} 9... Bb7 {[%clk
0:02:57.1]} 10. Ne5 {[%clk 0:02:59.3]} 10... c5 {[%clk 0:02:54.3]} 11. f4 {[%clk
0:02:57.2]} 11... Rc8 {[%clk 0:02:45.5]} 12. Rc1 {[%clk 0:02:55.8]} 12... Qe7
{[%clk 0:02:37]} 13. Ndf3 {[%clk 0:02:49.5]} 13... Ne4 {[%clk 0:02:32.5]} 14.
Nxd7 {[%clk 0:02:45.8]} 14... Qxd7 {[%clk 0:02:31.6]} 15. Ne5 {[%clk 0:02:46.7]}
15... Qe7 {[%clk 0:02:29.3]} 16. Qg4 {[%clk 0:02:42.7]} 16... f6 {[%clk
0:02:15.5]} 17. Nf3 {[%clk 0:02:37.5]} 17... cxd4 {[%clk 0:02:05.6]} 18. Nxd4
{[%clk 0:02:30.1]} 18... Bc5 {[%clk 0:02:02.5]} 19. Kh1 {[%clk 0:02:21.9]} 19...
Bxd4 {[%clk 0:01:46]} 20. Bxd4 {[%clk 0:02:22.8]} 20... e5 {[%clk 0:01:38.3]}
21. Bb2 {[%clk 0:02:14.7]} 21... dxc4 {[%clk 0:01:07.2]} 22. Bxc4+ {[%clk
0:02:06.3]} 22... Kh8 {[%clk 0:01:05.1]} 23. Bd3 {[%clk 0:02:00.4]} 23... Rxc1
{[%clk 0:00:59.1]} 24. Rxc1 {[%clk 0:02:01.3]} 24... Nf2+ {[%clk 0:00:59]} 0-1